bitfinex-derivatives/quotes_ETHF0:USTF0_20260119
["timestamp","ask_amount","ask_price","bid_price","bid_amount"]
[1768865229750,0.89944051,3183.6,3182.1,3.39090163]
[1768865229948,0.89944051,3183.6,3182.2,0.13890163]
[1768865230243,0.15714,3183.8,3182.2,0.13890163]
[1768865230448,0.90022886,3183.7,3182.2,0.13890163]
[1768865230643,0.90022886,3183.6,3182.2,0.13890163]
[1768865230850,0.15714,3183.8,3182.2,0.13890163]
[1768865231051,0.90023038,3183.7,3182.2,0.13890163]
[1768865231250,0.90023038,3183.6,3182.2,0.13890163]
[1768865231453,0.90023038,3183.5,3182.2,0.13890163]
[1768865231750,0.15714,3183.8,3182.2,0.13890163]
[1768865231942,0.90082428,3183.7,3182.2,0.13890163]
[1768865232143,0.90082428,3183.6,3182.2,0.13890163]
[1768865232347,0.90082428,3183.5,3182.2,0.13890163]
[1768865232551,0.90082428,3183.4,3182.2,0.13890163]
[1768865232750,1.26226439,3183.8,3182.2,0.13890163]
[1768865232952,0.90161073,3183.7,3182.2,0.13890163]
[1768865233144,0.90161073,3183.6,3182.2,0.13890163]
[1768865233340,0.90161073,3183.5,3182.2,0.13890163]
[1768865233547,0.90161073,3183.4,3182.2,0.13890163]
[1768865233745,1.26226439,3183.8,3182.2,0.13890163]
[1768865233949,0.90237372,3183.7,3182.2,0.13890163]
[1768865234157,0.90237372,3183.6,3182.2,0.13890163]
[1768865234452,0.90237372,3183.5,3182.2,0.13890163]
[1768865234751,0.90237372,3183.4,3182.2,0.13890163]
[1768865234950,0.90237372,3183.3,3182.2,0.13890163]
[1768865235253,0.90374492,3183.2,3182.2,0.13890163]
[1768865235456,1.10512439,3183.6,3182.2,0.13890163]
[1768865236357,2.00886983,3183.6,3182.2,0.13890163]
[1768865236548,0.90374544,3183.5,3182.2,0.13890163]
[1768865236748,0.90374544,3183.4,3182.2,0.13890163]
[1768865236949,0.90374544,3183.3,3182.2,0.13890163]
[1768865237258,1.10512439,3183.7,3182.3,0.13890163]
[1768865238257,2.00907273,3183.6,3182.3,0.13890163]
[1768865238459,0.90394834,3183.5,3182.3,0.13890163]
[1768865238666,0.90394834,3183.4,3182.3,0.13890163]
[1768865238853,0.90394834,3183.3,3182.3,1.45592045]
[1768865239171,0.90415339,3183.2,3182.3,1.45592045]
[1768865239460,1.10512439,3183.6,3182.4,0.13890163]
[1768865248666,1.10512439,3183.6,3182.2,0.15722]
[1768865249053,1.10512439,3183.6,3182.3,3.243]
[1768865249764,1.10512439,3183.6,3182.2,0.15722]
[1768865249966,1.24052496,3183.6,3182.3,3.244]
[1768865250160,2.00911207,3183.5,3182.3,3.244]
[1768865251566,2.00911207,3183.5,3182.2,0.15722]
[1768865251768,1.10512439,3183.2,3181.9,3.244]
[1768865252159,2.00911207,3183.2,3181.9,3.244]
[1768865252361,0.90398768,3183.1,3181.9,3.244]
[1768865252566,0.90398768,3183.0,3181.9,3.244]
[1768865252765,0.90398768,3182.9,3181.9,3.244]
[1768865252968,0.90398768,3182.8,3181.9,3.244]
[1768865253261,1.10512439,3183.2,3181.9,3.244]
[1768865254670,1.10512439,3183.2,3181.6,0.29923485]
[1768865254863,1.10512439,3183.2,3181.7,3.247]
[1768865255373,2.00886952,3183.1,3181.8,3.249]
[1768865255571,0.90374513,3183.0,3181.8,3.249]
[1768865255870,0.90374513,3182.9,3181.8,3.249]
[1768865256069,0.90374513,3182.8,3181.8,3.249]
[1768865256367,1.10512439,3183.1,3181.8,3.249]
[1768865256763,1.10512439,3183.1,3181.9,3.251]
[1768865257260,0.90317112,3183.0,3181.9,3.251]
[1768865257463,0.90317112,3182.9,3181.9,3.251]
[1768865257659,0.90317112,3182.8,3181.6,0.14198485]
[1768865257864,0.90317112,3182.7,3181.2,0.14198485]
[1768865258065,0.90317112,3182.6,3181.3,2.729]
[1768865258264,0.90317112,3182.5,3181.3,2.729]
[1768865258463,0.13540057,3182.8,3181.3,2.729]
[1768865258673,0.90256973,3182.7,3181.3,2.729]
[1768865258874,0.90256973,3182.6,3181.4,3.253]
[1768865259068,0.90256973,3182.5,3181.2,0.14198485]
[1768865259371,0.90256973,3182.4,3181.3,3.253]
[1768865259568,1.39771496,3182.8,3181.3,3.253]
[1768865259773,0.9020001,3182.7,3181.3,3.253]
[1768865260073,0.9020001,3182.6,3181.3,3.253]
[1768865260268,0.9020001,3182.5,3181.3,3.253]
[1768865260475,0.9020001,3182.4,3181.2,3.253]
[1768865260667,0.13540057,3182.7,3181.2,3.253]
[1768865260871,0.90163858,3182.6,3181.2,3.253]
[1768865261175,0.90163858,3182.5,3181.2,3.253]
[1768865261370,0.90163858,3182.4,3181.2,3.253]
[1768865261571,0.13540057,3182.7,3181.2,3.253]
[1768865261775,0.90135373,3182.6,3181.2,3.253]
[1768865261976,0.90135373,3182.5,3181.2,3.253]
[1768865262175,0.13540057,3182.7,3181.2,3.253]
[1768865262475,0.90111233,3182.6,3181.2,3.253]
[1768865262677,0.90111233,3182.5,3181.2,3.253]
[1768865262975,1.31822845,3182.6,3181.2,4.57122845]
[1768865263270,0.90111121,3182.5,3181.4,0.13125205]
[1768865263472,1.31822845,3182.7,3181.4,0.13125205]
[1768865263670,0.90091462,3182.6,3181.4,0.13125205]
[1768865263874,0.90091462,3182.5,3181.4,0.13125205]
[1768865264073,1.31822845,3182.7,3181.4,0.13125205]
[1768865264281,0.9007498,3182.6,3181.4,0.13125205]
[1768865264477,0.9007498,3182.5,3181.4,0.13125205]
[1768865264774,1.31822845,3182.7,3181.4,0.13125205]
[1768865264970,0.90074976,3182.6,3181.4,0.13125205]
[1768865265170,0.90074976,3182.5,3181.4,0.13125205]
[1768865265370,1.31822845,3182.7,3181.4,0.13125205]
[1768865265567,0.90061496,3182.6,3181.4,0.13125205]
[1768865265768,0.90061496,3182.5,3181.4,0.13125205]
[1768865265970,1.31822845,3182.7,3181.4,0.13125205]
[1768865266170,1.31822845,3182.5,3181.4,0.13125205]
[1768865271781,1.03457922,3182.4,3180.9,0.15728]
[1768865272087,1.31822845,3182.0,3180.8,0.13125205]
[1768865272679,1.31822845,3182.2,3180.8,0.13125205]
[1768865272873,1.31822845,3182.2,3180.9,1.31822845]
[1768865273481,0.13424906,3182.4,3180.9,1.31822845]
[1768865273681,1.31822845,3182.2,3180.9,1.31822845]
[1768865274984,0.1572,3182.7,3181.3,1.45909442]
[1768865275289,0.9002513,3182.6,3181.3,1.45909442]
[1768865275484,0.9002513,3182.5,3181.3,1.45909442]
[1768865275680,0.9002513,3182.4,3181.3,1.45909442]
[1768865275885,1.47542845,3182.7,3181.3,1.45909442]
[1768865276081,0.90031896,3182.6,3181.3,1.45909442]
[1768865276390,1.31822845,3182.3,3180.9,1.45909442]
[1768865276682,1.31822845,3182.1,3180.9,0.14086597]
[1768865277075,1.31822845,3182.1,3181.0,3.253]
[1768865278789,0.13311123,3182.6,3181.0,3.256]
[1768865278790,1.31822845,3181.9,3181.0,3.256]
[1768865278981,1.31822845,3182.4,3181.0,3.256]
[1768865279182,0.90075337,3182.3,3181.1,1.31822845]
[1768865279379,0.90075337,3182.2,3181.1,1.31822845]
[1768865279582,1.31822845,3182.4,3181.1,1.31822845]
[1768865279782,0.90098221,3182.3,3181.1,1.31822845]
[1768865279986,0.90098221,3182.2,3181.1,1.31822845]
[1768865280279,1.31822845,3182.5,3181.1,1.31822845]
[1768865280490,0.90128398,3182.4,3181.1,1.31822845]
[1768865280689,0.90128398,3182.3,3181.1,1.31822845]
[1768865280884,0.90128398,3182.2,3181.1,1.31822845]
[1768865281085,1.31822845,3182.5,3181.1,1.31822845]
[1768865281279,0.90163614,3182.4,3181.1,1.31822845]
[1768865281484,0.90163614,3182.3,3181.1,1.31822845]
[1768865281683,0.90163614,3182.2,3181.1,1.31822845]
[1768865281891,0.90163614,3182.1,3181.0,3.39686597]
[1768865282088,2.42335284,3182.5,3181.1,1.31822845]
[1768865282294,0.90177522,3182.4,3181.1,1.31822845]
[1768865282489,0.90177522,3182.3,3181.1,1.31822845]
[1768865282694,0.90177522,3182.2,3181.1,1.31822845]
[1768865282905,0.90177522,3182.1,3181.1,1.31822845]
[1768865283194,2.42335284,3182.5,3181.1,1.31822845]
[1768865283195,0.90517445,3182.0,3181.1,1.31822845]
[1768865283395,1.31822845,3182.3,3181.1,1.31822845]
[1768865283595,0.9051717,3182.2,3181.1,1.31822845]
[1768865283791,0.9051717,3182.1,3181.1,1.31822845]
[1768865284094,0.90538245,3182.0,3181.1,1.31822845]
[1768865284297,2.42335284,3182.4,3181.1,1.31822845]
[1768865284496,0.90540111,3182.3,3181.7,1.31822845]
[1768865284696,0.90540111,3182.2,3181.7,1.45909442]
[1768865284997,0.90540111,3182.1,3181.7,1.45909442]
[1768865285294,1.10512439,3182.5,3181.7,1.45909442]
[1768865285499,2.01080934,3182.5,3181.7,0.14086597]
[1768865285689,0.90568495,3182.4,3181.3,1.45909442]
[1768865285894,0.90568495,3182.3,3181.3,1.45909442]
[1768865286097,0.90568495,3182.2,3181.1,4.56822845]
[1768865286294,0.90568495,3182.1,3181.1,4.56822845]
[1768865286594,0.90568495,3182.1,3181.0,0.15728]
[1768865286595,1.31822845,3182.3,3181.0,1.31822845]
[1768865286806,0.90596366,3182.2,3181.0,1.31822845]
[1768865287000,0.90596366,3182.1,3181.6,1.45909442]
[1768865287295,1.10512439,3182.5,3181.6,1.31822845]
[1768865287494,0.48029416,3182.4,3181.9,1.45909442]
[1768865287682,2.37644076,3183.2,3182.1,1.31822845]
[1768865287683,1.10512439,3183.1,3182.1,1.31822845]
[1768865288393,1.10512439,3183.1,3181.9,1.45909442]
[1768865288899,1.10512439,3183.2,3181.9,1.45909442]
[1768865289504,1.10512439,3183.2,3182.1,1.31822845]
[1768865290302,1.23823562,3183.3,3182.1,1.31822845]
[1768865291301,0.13311123,3183.3,3182.1,1.31822845]
[1768865294502,0.13311123,3183.3,3182.3,1.31822845]
[1768865294692,1.10512439,3183.5,3182.3,1.31822845]
[1768865294892,1.23823562,3183.5,3182.3,1.31822845]
[1768865295199,0.13311123,3183.4,3182.3,1.31822845]
[1768865297290,0.13311123,3183.3,3181.8,0.15724]
[1768865297499,0.13311123,3183.3,3182.0,1.31822845]
[1768865297695,0.13311123,3183.3,3181.8,0.15724]
[1768865297899,0.13311123,3183.3,3182.0,1.31822845]
[1768865299004,0.13311123,3183.3,3182.2,1.31822845]
[1768865299903,1.31822845,3183.6,3182.2,1.31822845]
[1768865300207,0.13311123,3183.1,3181.8,0.15724]
[1768865300405,0.13311123,3183.0,3181.8,0.15724]
[1768865300703,0.13311123,3183.0,3181.9,3.249]
[1768865301398,0.13311123,3183.0,3181.9,3.25]
[1768865301909,0.13311123,3183.0,3181.8,3.40724]
[1768865302100,0.13311123,3183.0,3181.8,0.15724]
[1768865302296,0.13311123,3183.0,3181.8,3.40624]
[1768865302495,0.13311123,3183.0,3181.7,1.31822845]
[1768865302701,0.13311123,3183.0,3181.8,3.249]
[1768865303104,0.13311123,3183.0,3181.7,1.31822845]
[1768865303307,0.13311123,3183.0,3181.8,3.25]
[1768865303606,0.13311123,3183.0,3181.7,1.31822845]
[1768865303807,1.31822845,3182.8,3181.5,1.31822845]
[1768865304008,0.13311123,3183.0,3181.9,1.31822845]
[1768865304202,1.24753006,3183.5,3182.1,1.31822845]
[1768865304409,0.90060573,3183.4,3182.3,1.31822845]
[1768865304703,0.90060573,3183.3,3182.3,1.31822845]
[1768865304904,0.90060573,3183.2,3182.3,1.31822845]
[1768865305107,1.10512439,3183.6,3182.3,1.31822845]
[1768865308809,0.90066272,3183.5,3182.5,1.31822845]
[1768865309005,0.90066272,3183.4,3182.5,1.31822845]
[1768865309204,0.90066272,3183.3,3182.5,1.31822845]
[1768865309397,1.10512439,3183.7,3182.5,1.31822845]
[1768865309601,2.00662326,3183.7,3182.5,1.31822845]
[1768865310414,2.00662326,3183.7,3182.7,1.31822845]
[1768865310721,0.90149887,3183.6,3182.7,1.31822845]
[1768865310920,0.90149887,3183.5,3182.7,1.31822845]
[1768865311109,0.90149887,3183.4,3182.7,1.31822845]
[1768865311311,1.10512439,3183.8,3182.7,1.31822845]
[1768865311519,2.0092714,3183.8,3182.7,1.31822845]
[1768865311816,0.90414701,3183.7,3182.7,1.31822845]
[1768865312017,0.90414701,3183.6,3182.7,1.31822845]
[1768865312218,0.90414701,3183.5,3182.7,1.31822845]
[1768865312414,1.10512439,3183.8,3182.7,1.31822845]
[1768865312415,0.90414701,3183.4,3182.7,1.31822845]
[1768865312613,1.10512439,3183.8,3182.7,1.31822845]
[1768865312817,1.10512439,3183.8,3182.9,1.31822845]
[1768865313123,1.10512439,3183.8,3182.9,1.32181325]
[1768865313321,2.00894552,3183.8,3182.9,1.32181325]
[1768865313522,0.00306532,3183.9,3183.3,1.31822845]
[1768865313710,0.00306532,3183.9,3183.5,1.31822845]
[1768865313911,1.66564278,3184.4,3183.5,1.31822845]
[1768865313912,1.10512439,3184.4,3183.5,1.31822845]
[1768865314121,0.90487513,3184.3,3183.5,1.31822845]
[1768865314312,0.90487513,3184.2,3183.5,1.31822845]
[1768865314518,0.90487513,3184.1,3183.5,1.31822845]
[1768865314718,1.10512439,3184.5,3183.5,1.31822845]
[1768865314919,1.10832204,3184.5,3183.1,1.3163166]
[1768865315319,1.10832204,3184.5,3182.9,0.1607648]
[1768865315524,1.25072771,3184.5,3183.0,3.241]
[1768865315723,0.90473192,3184.4,3183.0,3.241]
[1768865315923,0.90473192,3184.3,3183.0,3.241]
[1768865316126,0.90473192,3184.2,3183.0,3.241]
[1768865316325,0.90473192,3184.1,3183.0,3.241]
[1768865316527,1.25072771,3184.5,3183.0,3.241]
[1768865316728,0.90463432,3184.4,3183.0,3.241]
[1768865317025,0.90463432,3184.3,3183.0,3.241]
[1768865317228,0.90463432,3184.2,3183.0,3.241]
[1768865317527,0.90463432,3184.1,3183.0,3.241]
[1768865317725,1.25072771,3184.5,3183.0,3.241]
[1768865317924,0.90469055,3184.4,3183.0,3.241]
[1768865318228,0.90469055,3184.3,3183.0,3.241]
[1768865318428,0.90469055,3184.2,3183.0,3.241]
[1768865318622,0.90469055,3184.1,3183.0,3.241]
[1768865318823,1.25072771,3184.5,3183.0,3.241]
[1768865319017,0.90447699,3184.4,3183.0,3.241]
[1768865319222,1.25072771,3184.5,3183.0,3.241]
[1768865319223,0.90447699,3184.3,3183.0,3.241]
[1768865319419,0.90447699,3184.2,3183.0,3.241]
[1768865319623,0.90447699,3184.1,3183.0,3.241]
[1768865319819,1.10832204,3184.5,3183.0,3.241]
[1768865320023,0.90430103,3184.4,3183.6,1.3163166]
[1768865320322,0.00319765,3184.5,3183.4,1.31720324]
[1768865320722,1.10512439,3185.2,3183.8,1.3163166]
[1768865320923,2.00918126,3185.2,3183.8,1.3163166]
[1768865321328,0.90405687,3185.1,3183.8,1.3163166]
[1768865321525,0.13461335,3184.9,3183.0,0.15807901]
[1768865321728,0.13825579,3184.9,3183.1,3.24389901]
[1768865321924,0.13825579,3184.9,3183.1,4.56021561]
[1768865322424,0.13825579,3184.9,3183.1,4.71739561]
[1768865322628,0.13825579,3184.9,3183.2,0.15717]
[1768865323819,0.00364244,3184.9,3183.2,0.15717]
[1768865324026,0.13825579,3184.9,3183.2,0.15717]
[1768865324235,0.13825579,3184.9,3183.3,3.249]
[1768865325927,0.13825579,3184.9,3183.2,0.15717]
[1768865326121,0.13461335,3184.6,3182.9,0.0035848]
[1768865326419,0.13461335,3184.2,3182.9,0.0035848]
[1768865327224,0.13461335,3184.2,3182.9,3.2575848]
[1768865329236,0.13461335,3184.2,3182.9,0.0035848]
[1768865329437,0.13461335,3184.2,3182.9,3.2565848]
[1768865329640,0.13461335,3184.2,3182.9,0.0035848]
[1768865329834,0.13461335,3184.2,3182.9,3.2555848]
[1768865330631,0.29171335,3184.6,3182.9,3.2555848]
[1768865330831,1.03716267,3184.5,3182.9,3.2555848]
[1768865331132,0.90254932,3184.4,3182.9,3.2555848]
[1768865333541,0.90254932,3184.4,3183.0,3.249]
[1768865336432,0.90254932,3184.4,3182.9,0.0035848]
[1768865336738,0.90254932,3184.4,3183.0,3.247]
[1768865339231,0.90254932,3184.4,3182.9,0.0035848]
[1768865339428,0.90254932,3184.4,3182.9,3.2485848]
[1768865340447,2.00767371,3184.4,3182.9,3.2485848]
[1768865340935,0.90254932,3184.3,3182.9,3.2485848]
[1768865341148,0.90254932,3184.2,3182.9,3.25437601]
[1768865341348,0.90254932,3184.1,3182.9,3.25437601]
[1768865341541,1.23973774,3184.5,3183.0,0.00579121]
[1768865341746,1.10512439,3184.8,3183.2,0.00579121]
[1768865341935,0.90531296,3184.7,3183.2,0.00579121]
[1768865342136,0.90531296,3184.6,3183.3,0.00803735]
[1768865342331,0.90531296,3184.5,3183.3,0.00803735]
[1768865342548,0.9048685,3184.4,3183.3,0.00803735]
[1768865342749,1.10512439,3184.8,3183.3,0.00803735]
[1768865344641,1.04182545,3184.7,3183.2,40.95717]
[1768865344950,0.13791422,3184.6,3183.2,3.248]
[1768865345151,0.90391123,3184.5,3182.9,0.01171404]
[1768865345342,0.90391123,3184.5,3183.1,3.249]
[1768865347549,0.90391123,3184.4,3183.1,3.249]
[1768865347738,0.90391123,3184.3,3182.9,0.01171404]
[1768865347937,0.90391123,3184.2,3183.0,3.251]
[1768865348138,1.24303861,3184.6,3183.1,3.251]
[1768865348341,0.90409816,3184.5,3183.1,3.251]
[1768865348547,0.90409816,3184.4,3183.1,3.251]
[1768865348749,0.90409816,3184.3,3183.1,3.251]
[1768865349047,0.90409816,3184.2,3183.1,3.251]
[1768865349240,1.24303861,3184.6,3183.1,3.251]
[1768865349439,0.90412191,3184.5,3183.1,3.251]
[1768865349639,0.90412191,3184.4,3183.1,3.251]
[1768865349939,0.90412191,3184.3,3183.1,3.251]
[1768865350248,0.90412191,3184.2,3183.1,3.251]
[1768865350451,1.24303861,3184.6,3183.1,3.251]
[1768865350640,0.90416433,3184.5,3183.1,3.251]
[1768865350841,0.90416433,3184.4,3183.1,3.251]
[1768865351041,0.90416433,3184.3,3183.1,3.251]
[1768865351238,0.90416433,3184.2,3183.1,3.251]
[1768865351445,1.24303861,3184.6,3183.1,3.251]
[1768865351645,0.90427109,3184.5,3183.1,3.251]
[1768865351847,0.90427109,3184.4,3183.1,3.251]
[1768865352046,0.90427109,3184.3,3183.1,3.251]
[1768865352265,0.90427109,3184.2,3183.1,3.251]
[1768865352446,1.10512439,3184.6,3183.2,0.0074412]
[1768865352941,1.10512439,3184.6,3183.2,40.8074412]
[1768865353146,1.10512439,3184.6,3183.3,0.00744107]
[1768865353951,2.00952835,3184.6,3183.4,3.261]
[1768865354150,0.90440396,3184.5,3183.4,3.261]
[1768865354352,0.90440396,3184.4,3183.4,3.261]
[1768865354656,0.90440396,3184.3,3183.4,3.261]
[1768865354864,0.90440396,3184.2,3183.4,3.261]
[1768865355057,1.10512439,3184.6,3183.4,3.261]
[1768865356653,1.10512439,3184.6,3183.4,3.26878355]
[1768865356853,0.90482545,3184.5,3183.4,3.26878355]
[1768865357152,0.90482545,3184.4,3183.4,3.26878355]
[1768865357355,1.10512439,3184.8,3183.4,3.26878355]
[1768865358152,0.90460173,3184.8,3183.4,3.26878355]
[1768865358355,2.00972612,3184.8,3183.4,3.26878355]
[1768865358556,0.90460173,3184.7,3183.4,3.26878355]
[1768865358860,1.04251595,3184.6,3183.5,3.268]
[1768865359057,1.04251595,3184.5,3183.6,3.269]
[1768865359263,0.90460173,3184.4,3183.6,3.269]
[1768865359462,0.90460173,3184.3,3183.6,3.269]
[1768865359662,0.13791422,3184.5,3183.6,3.269]
[1768865359858,0.90595951,3184.4,3183.6,3.269]
[1768865360170,0.90595951,3184.3,3183.6,3.269]
[1768865360464,0.13791422,3184.5,3183.6,3.269]
[1768865360658,0.90637278,3184.4,3183.6,3.269]
[1768865360961,0.90637278,3184.3,3183.6,3.27]
[1768865361168,0.90637278,3184.2,3183.6,3.27]
[1768865361364,0.13791422,3184.5,3183.0,40.8]
[1768865361668,1.04420263,3184.4,3183.1,3.271]
[1768865361963,0.90628841,3184.3,3183.1,3.271]
[1768865362266,0.90628841,3184.2,3183.1,3.271]
[1768865362461,1.10512439,3184.6,3183.1,3.271]
[1768865362766,1.24303861,3184.6,3183.1,3.271]
[1768865362955,0.90623428,3184.5,3183.1,3.271]
[1768865363164,0.90623428,3184.4,3183.1,3.271]
[1768865363362,0.90623428,3184.3,3183.1,3.271]
[1768865363657,0.90623428,3184.2,3183.2,3.275]
[1768865363854,0.90623428,3184.1,3183.2,3.275]
[1768865364052,1.24303861,3184.6,3183.2,3.275]
[1768865364266,0.90628409,3184.5,3183.2,3.275]
[1768865364460,0.90628409,3184.4,3182.9,40.96858301]
[1768865364665,0.90628409,3184.3,3183.0,3.276]
[1768865364961,0.90628409,3184.2,3183.0,3.276]
[1768865365169,0.90628409,3184.1,3183.0,3.276]
[1768865365364,1.10512439,3184.5,3183.0,3.276]
[1768865365570,2.0115413,3184.5,3183.0,3.276]
[1768865365765,0.90641691,3184.4,3183.0,3.276]
[1768865365965,0.90641691,3184.3,3183.0,3.276]
[1768865366164,0.90641691,3184.2,3183.0,3.276]
[1768865366467,0.90641691,3184.1,3183.0,3.276]
[1768865366668,1.10512439,3184.5,3183.0,3.276]
[1768865366970,2.01161108,3184.5,3183.0,3.276]
[1768865367869,2.01161108,3184.5,3183.0,3.28343172]
[1768865368666,2.01161108,3184.5,3183.1,0.00833496]
[1768865368968,1.10512439,3184.5,3183.1,0.00833496]
[1768865369168,2.01161108,3184.5,3183.1,0.00833496]
[1768865370462,2.01161108,3184.4,3183.1,0.00833496]
[1768865370770,0.90648669,3184.3,3183.1,0.00833496]
[1768865371071,0.90648669,3184.2,3183.1,0.00833496]
[1768865371271,0.90648669,3184.1,3183.1,0.00833496]
[1768865371471,0.90648669,3184.0,3183.1,0.00833496]
[1768865371671,1.10512439,3184.4,3183.1,0.00833496]
[1768865373168,2.01377628,3184.4,3183.1,0.00833496]
[1768865373368,0.90865189,3184.3,3183.1,0.00833496]
[1768865373571,0.90865189,3184.2,3183.1,0.00833496]
[1768865373764,0.90865189,3184.1,3183.1,0.00833496]
[1768865374067,0.90453729,3184.0,3183.1,0.00833496]
[1768865374277,1.10512439,3184.4,3183.1,0.00833496]
[1768865375067,1.10512439,3184.4,3183.2,1.31658176]
[1768865375268,2.00973566,3184.4,3183.2,1.31658176]
[1768865375473,0.90461127,3184.3,3183.2,1.31658176]
[1768865375772,0.90461127,3184.2,3183.2,1.31658176]
[1768865375968,0.90461127,3184.1,3183.2,1.31658176]
[1768865376272,0.90461127,3184.0,3183.2,1.31658176]
[1768865376473,1.10512439,3184.4,3183.2,1.31658176]
[1768865376673,2.00973667,3184.4,3183.2,1.31658176]
[1768865378569,2.00973667,3184.4,3183.1,0.00833496]
[1768865378774,2.00973667,3184.4,3183.2,1.31658176]
[1768865380976,2.00973667,3184.4,3183.4,1.31658176]
[1768865381174,0.90461228,3184.3,3183.4,1.31658176]
[1768865381373,0.90461228,3184.2,3183.4,1.31658176]
[1768865381673,0.90461228,3184.1,3183.4,1.31658176]
[1768865381876,1.10512439,3184.4,3183.4,1.31658176]
[1768865382074,0.90485256,3184.3,3183.4,1.31658176]
[1768865382276,0.90485256,3184.2,3183.4,1.31658176]
[1768865382469,0.90485256,3184.1,3183.4,1.31658176]
[1768865382670,1.10512439,3184.5,3183.4,1.31658176]
[1768865382870,2.01001343,3184.5,3183.4,1.31658176]
[1768865384881,0.90488904,3184.4,3183.4,1.31658176]
[1768865385076,0.90488904,3184.3,3183.4,1.31658176]
[1768865385274,0.90488904,3184.2,3183.4,1.31658176]
[1768865385473,1.24303861,3184.6,3183.6,1.31658176]
[1768865385674,0.90443115,3184.5,3183.7,3.309]
[1768865385874,0.90443115,3184.4,3183.7,3.309]
[1768865386181,0.90443115,3184.3,3183.7,3.309]
[1768865386475,1.10512439,3184.6,3183.7,3.309]
[1768865386666,1.10512439,3184.6,3183.8,1.31658176]
[1768865386867,0.90440755,3184.5,3183.8,1.31658176]
[1768865387070,0.90440755,3184.4,3183.8,1.31658176]
[1768865387273,0.90440755,3184.3,3183.8,1.31658176]
[1768865387474,1.10512439,3184.7,3183.8,1.31658176]
[1768865388979,2.00887199,3184.7,3183.8,1.31658176]
[1768865389180,0.9037476,3184.6,3183.8,1.31658176]
[1768865389379,0.9037476,3184.5,3183.8,1.31658176]
[1768865389578,0.9037476,3184.4,3183.8,1.31658176]
[1768865389781,0.9037476,3184.3,3183.8,1.31658176]
[1768865389981,1.10512439,3184.7,3183.8,1.31658176]
[1768865390175,1.10512439,3184.8,3183.8,1.31658176]
[1768865390483,2.00882585,3184.8,3184.0,1.31658176]
[1768865390680,0.90370146,3184.7,3184.0,1.31658176]
[1768865390974,0.90370146,3184.6,3184.0,1.31658176]
[1768865391179,0.00364244,3184.9,3183.7,3.31683433]
[1768865391382,0.90342681,3184.8,3183.8,1.31658176]
[1768865391575,0.90342681,3184.7,3183.9,3.311]
[1768865391882,0.90342681,3184.7,3183.6,3.30015]
[1768865391883,0.14460397,3184.9,3184.0,3.311]
[1768865392081,0.90342451,3184.8,3184.0,3.311]
[1768865392384,0.90342451,3184.7,3184.0,3.311]
[1768865392684,0.14460397,3184.9,3184.0,3.311]
[1768865392885,0.90319513,3184.8,3184.0,3.311]
[1768865393077,0.14460397,3184.9,3184.0,3.311]
[1768865393078,0.90319513,3184.7,3184.0,3.311]
[1768865393277,0.14460397,3184.9,3184.0,3.311]
[1768865393483,0.90312982,3184.8,3184.0,3.311]
[1768865393677,0.90312982,3184.7,3184.0,3.311]
[1768865393881,0.14460397,3184.9,3184.0,3.311]
[1768865394087,0.90319756,3184.8,3184.0,3.311]
[1768865394277,0.90319756,3184.7,3184.0,3.311]
[1768865394482,0.14460397,3184.9,3184.0,3.311]
[1768865394681,0.90305906,3184.8,3184.0,3.311]
[1768865394886,0.90305906,3184.7,3184.0,3.311]
[1768865395190,0.14460397,3184.9,3184.0,3.311]
[1768865395383,0.90288296,3184.8,3184.0,3.311]
[1768865395594,0.90288296,3184.7,3184.0,3.311]
[1768865395884,0.14460397,3184.9,3184.0,3.311]
[1768865396088,0.90288186,3184.8,3184.0,3.311]
[1768865396286,0.90288186,3184.7,3184.0,3.311]
[1768865396483,0.14460397,3184.9,3184.0,3.311]
[1768865396688,0.90278881,3184.8,3184.0,3.311]
[1768865396888,0.90278881,3184.7,3184.0,3.311]
[1768865397080,0.14460397,3184.9,3184.0,3.311]
[1768865397282,0.90271365,3184.8,3184.0,3.311]
[1768865397481,0.90271365,3184.7,3184.0,3.311]
[1768865397686,0.14460397,3184.9,3184.0,3.311]
[1768865397886,0.90271553,3184.8,3184.0,3.311]
[1768865398091,0.00364244,3184.9,3184.0,3.311]
[1768865398290,0.90265378,3184.8,3184.0,3.311]
[1768865398478,0.00364244,3184.9,3184.0,3.311]
[1768865398682,0.90265382,3184.8,3184.0,3.311]
[1768865398885,0.00364244,3184.9,3184.0,4.62758176]
[1768865399184,0.90265389,3184.8,3184.0,4.62758176]
[1768865399387,0.00364244,3184.9,3184.4,1.31658176]
[1768865400390,0.00364244,3184.9,3184.1,40.8]
[1768865400391,1.31658176,3185.1,3184.1,40.8]
[1768865400586,1.45808859,3185.1,3184.2,3.305]
[1768865400791,0.14150683,3185.0,3184.2,3.306]
[1768865401089,0.14150683,3185.4,3184.1,3.307]
[1768865401281,0.14150683,3185.3,3184.2,3.306]
[1768865401989,0.14150683,3185.3,3183.9,1.31658176]
[1768865402184,0.14150683,3185.3,3184.1,3.307]
[1768865402996,0.14150683,3185.1,3183.9,1.31658176]
[1768865403186,0.14150683,3185.1,3184.0,3.307]
[1768865403490,1.45808859,3185.0,3183.8,0.15714]
[1768865403796,0.14150683,3184.9,3183.9,3.307]
[1768865404094,1.10900613,3185.4,3184.5,1.31658176]
[1768865404595,1.10900613,3185.4,3184.3,1.31658176]
[1768865405101,0.00388174,3185.4,3184.3,1.31658176]
[1768865405287,0.00388174,3185.4,3184.7,1.31658176]
[1768865406195,1.10512439,3186.2,3185.2,1.31658176]
[1768865406388,1.10512439,3186.3,3185.0,4.62058176]
[1768865406596,2.42170615,3186.3,3185.0,4.62058176]
[1768865407189,1.1081236,3186.3,3185.0,4.62315341]
[1768865407397,0.00299921,3186.3,3185.4,1.31658176]
[1768865407895,0.00299921,3186.3,3185.0,0.15965165]
[1768865408095,1.31958097,3186.3,3185.1,0.872]
[1768865408496,1.31658176,3186.1,3185.0,3.30457165]
[1768865409099,1.31658176,3186.1,3185.0,44.10457165]
[1768865409291,0.14450604,3186.3,3185.0,44.10457165]
[1768865409492,0.00299921,3186.3,3185.3,1.31658176]
[1768865410598,0.00299921,3186.3,3185.1,1.31658176]
[1768865410793,1.31658176,3186.1,3185.2,3.304]
[1768865410988,1.31658176,3186.0,3185.2,3.304]
[1768865411188,1.45808859,3186.2,3185.2,3.304]
[1768865412094,1.45808859,3186.2,3185.0,40.80257165]
[1768865412402,1.45808859,3186.2,3185.1,3.308]